bitfinex-derivatives/quotes_SOLF0:USTF0_20241105
["timestamp","ask_amount","ask_price","bid_price","bid_amount"]
[1730835772859,2.9958,166.9,166.87,2.9961]
[1730835774452,2.9955,166.91,166.87,2.9961]
[1730835774657,3.69174523,166.9,166.87,2.9961]
[1730835774862,2.9955,166.91,166.87,2.9961]
[1730835775052,3.69170678,166.9,166.87,2.9961]
[1730835775252,2.9955,166.91,166.87,2.9961]
[1730835775457,3.69120942,166.9,166.87,2.9961]
[1730835775659,2.9955,166.91,166.87,12.20320092]
[1730835775860,3.69123175,166.9,166.87,12.20320092]
[1730835776051,2.9955,166.91,166.87,12.20320092]
[1730835776261,3.69106084,166.9,166.87,12.20320092]
[1730835776459,2.9955,166.91,166.87,12.20320092]
[1730835776663,3.68967482,166.9,166.87,12.20320092]
[1730835776861,2.9955,166.91,166.87,12.20320092]
[1730835777260,3.68963467,166.9,166.87,12.20320092]
[1730835777563,2.9955,166.91,166.87,12.20320092]
[1730835777761,1.2638,166.94,166.89,9.20710092]
[1730835778062,3.68921783,166.93,166.89,9.20710092]
[1730835778362,3.68921783,166.92,166.89,9.20710092]
[1730835778564,3.68921783,166.91,166.89,9.20710092]
[1730835778768,3.68921783,166.9,166.89,9.20710092]
[1730835779064,2.9953,166.92,166.89,9.20710092]
[1730835779259,3.68787886,166.91,166.89,9.20710092]
[1730835779456,3.68787886,166.9,166.89,9.20710092]
[1730835780564,3.68733559,166.9,166.89,9.20710092]
[1730835780863,2.9956,166.91,166.87,2.996]
[1730835781252,10.47090092,166.94,166.87,12.20310092]
[1730835781459,10.47090092,166.94,166.87,9.20710092]
[1730835781659,2.9953,166.92,166.88,2.996]
[1730835781965,2.82,166.96,166.89,9.20710092]
[1730835781966,9.20710092,166.95,166.89,9.20710092]
[1730835782165,3.68777673,166.91,166.85,2.82]
[1730835782368,12.02710092,166.98,166.9,9.20710092]
[1730835782572,6.68237451,166.97,166.92,12.20220092]
[1730835782865,2.82,166.98,166.89,2.82]
[1730835782866,3.68797451,166.96,166.93,9.20710092]
[1730835783067,3.68797451,166.95,166.93,9.20710092]
[1730835783372,3.68797451,166.94,166.93,12.20210092]
[1730835783568,2.9944,166.97,166.93,12.20210092]
[1730835783758,3.6892879,166.94,166.93,9.20710092]
[1730835786469,3.6892879,166.94,166.93,12.20220092]
[1730835786866,2.9945,166.97,166.93,12.20220092]
[1730835787064,3.68956698,166.96,166.93,12.20220092]
[1730835787267,3.68956698,166.95,166.93,12.20220092]
[1730835787478,3.68956698,166.94,166.93,9.20710092]
[1730835789974,3.68956698,166.94,166.93,15.02220092]
[1730835790174,4.19287,166.99,166.93,12.02710092]
[1730835790477,4.19287,166.99,166.95,9.20710092]
[1730835790478,3.6904549,166.98,166.95,9.20710092]
[1730835790680,3.6904549,166.97,166.95,12.20170092]
[1730835790873,3.6904549,166.96,166.95,12.20170092]
[1730835791275,3.6904549,166.96,166.95,9.20710092]
[1730835791475,3.6904549,166.96,166.94,2.9948]
[1730835791678,3.6904549,166.95,166.93,12.02710092]
[1730835791885,2.9942,166.98,166.93,12.02710092]
[1730835792081,3.69040547,166.97,166.93,12.02710092]
[1730835792283,3.69040547,166.96,166.93,12.02710092]
[1730835792482,3.69040547,166.95,166.93,12.02710092]
[1730835792783,3.69040547,166.94,166.93,15.02220092]
[1730835792987,2.9942,166.98,166.93,12.02710092]
[1730835793188,3.69125635,166.97,166.95,2.9947]
[1730835793388,3.69125635,166.96,166.95,2.9947]
[1730835794284,2.9942,166.98,166.95,2.9947]
[1730835794489,3.69192039,166.97,166.95,2.9947]
[1730835794683,3.69238711,166.96,166.95,2.9947]
[1730835794884,3.69238711,166.96,166.95,12.20180092]
[1730835797495,1.19887,166.99,166.96,2.9944]
[1730835797788,3.69283541,166.98,166.96,2.9944]
[1730835798094,3.69283541,166.97,166.96,4.2826]
[1730835799793,3.69283541,166.97,166.96,13.48970092]
[1730835800991,1.19887,166.99,166.97,2.9943]
[1730835801390,3.69253391,166.98,166.97,2.9943]
[1730835802101,3.69253391,166.98,166.97,5.8143]
[1730835804493,2.9936,167.01,166.98,2.994]
[1730835804794,3.69155076,167.0,166.98,2.994]
[1730835804989,2.9936,167.01,166.98,2.994]
[1730835804990,3.69155076,166.99,166.98,2.994]
[1730835805791,3.69155076,166.99,166.97,2.82]
[1730835806093,3.69155076,166.98,166.97,2.82]
[1730835807400,2.9941,166.99,166.97,2.82]
[1730835809896,2.9941,166.99,166.96,4.2827]
[1730835810698,9.20710092,167.0,166.96,4.2827]
[1730835810898,12.20100092,167.0,166.96,4.2827]
[1730835811905,12.20100092,167.0,166.97,2.9943]
[1730835813007,12.20100092,167.0,166.96,1.2882]
[1730835813207,12.20100092,167.0,166.96,4.2827]
[1730835813409,3.69127911,166.99,166.96,4.2827]
[1730835813609,3.69127911,166.98,166.96,4.2827]
[1730835813905,3.69127911,166.97,166.96,4.2827]
[1730835814204,2.994,166.99,166.96,4.2827]
[1730835814405,3.69119278,166.98,166.96,4.2827]
[1730835814711,3.69119278,166.97,166.96,4.2827]
[1730835816006,3.69119278,166.97,166.95,2.82]
[1730835816200,3.69119278,166.96,166.95,2.82]
[1730835816604,3.69119278,166.96,166.95,5.8147]
[1730835818009,3.69164014,166.96,166.95,5.8147]
[1730835819009,3.69164014,166.96,166.95,2.82]
[1730835819207,3.69164014,166.96,166.93,2.82]
[1730835819411,3.69164014,166.95,166.93,2.82]
[1730835819707,3.69164014,166.94,166.93,2.82]
[1730835820907,3.69164014,166.94,166.93,5.8151]
[1730835821413,2.9946,166.96,166.93,5.8151]
[1730835821614,3.69310944,166.95,166.93,5.8151]
[1730835821813,3.69310944,166.94,166.93,5.8151]
[1730835824706,3.69310944,166.94,166.93,2.82]
[1730835825112,3.69319699,166.94,166.93,2.82]
[1730835825315,3.69319699,166.94,166.92,12.20230092]
[1730835825614,3.6933155,166.93,166.92,12.20230092]
[1730835828220,3.6933155,166.93,166.91,1.3288]
[1730835828424,3.6933155,166.92,166.9,2.9955]
[1730835828626,9.20710092,166.96,166.9,9.20710092]
[1730835828816,3.6936139,166.95,166.9,9.20710092]
[1730835829117,3.69364678,166.94,166.9,9.20710092]
[1730835829318,9.20710092,166.96,166.9,9.20710092]
[1730835829519,2.995,166.94,166.91,2.9953]
[1730835829919,2.995,166.94,166.91,12.20240092]
[1730835830921,2.9945,166.97,166.93,2.9949]
[1730835832026,1.373,166.99,166.96,12.20160092]
[1730835832726,1.373,166.99,166.96,9.20710092]
[1730835832923,12.02710092,167.02,166.97,2.9942]
[1730835833227,2.9938,167.0,166.97,2.9942]
[1730835833528,2.9938,167.0,166.96,12.20160092]
[1730835834522,2.9936,167.02,166.97,12.20130092]
[1730835834728,2.9936,167.02,166.97,9.20710092]
[1730835835228,2.9936,167.02,166.98,2.9942]
[1730835835630,2.9937,167.01,166.97,9.20710092]
[1730835835929,2.9937,167.01,166.97,12.20140092]
[1730835837236,2.9935,167.03,166.99,2.9939]
[1730835839638,2.9935,167.02,166.98,2.9942]
[1730835841237,12.20090092,167.01,166.97,2.82]
[1730835841842,2.9939,167.0,166.97,2.82]
[1730835846643,2.9937,167.01,166.97,15.02140092]
[1730835847848,2.9935,167.02,166.99,9.20710092]
[1730835851847,9.20710092,167.04,166.99,9.20710092]
[1730835852052,1.27806,167.06,167.02,9.20710092]
[1730835852649,2.9929,167.05,167.02,9.20710092]
[1730835852949,1.27806,167.06,167.04,9.20710092]
[1730835853356,1.27806,167.06,167.05,2.9929]
[1730835853558,1.27806,167.06,167.05,5.8129]
[1730835858262,1.27806,167.06,167.05,2.82]
[1730835858660,1.27806,167.06,167.03,12.02710092]
[1730835860362,4.27096,167.06,167.03,15.02040092]
[1730835862358,1.27806,167.06,167.03,2.82]
[1730835862763,9.20710092,167.08,167.03,2.82]
[1730835863176,2.9929,167.06,167.03,2.82]
[1730835863572,9.20710092,167.08,167.03,2.82]
[1730835863773,2.9926,167.07,167.03,2.82]
[1730835864077,9.20710092,167.08,167.03,2.82]
[1730835864268,9.20710092,167.08,167.02,14.71090092]
[1730835864467,2.9929,167.05,167.02,14.71090092]
[1730835870581,9.20710092,167.08,167.02,14.71090092]
[1730835870582,2.9928,167.06,167.04,9.20710092]
[1730835871177,2.82,167.11,167.05,9.20710092]
[1730835872172,2.9925,167.08,167.05,9.20710092]
[1730835876195,2.9921,167.1,167.07,9.20710092]
[1730835876400,2.8,167.14,167.09,9.20710092]
[1730835876685,2.9918,167.12,167.09,9.20710092]
[1730835876886,10.56428092,167.15,167.09,9.20710092]
[1730835876887,22.09046824,167.15,167.09,9.20710092]
[1730835877089,10.56428092,167.15,167.09,9.20710092]
[1730835877285,2.9914,167.14,167.09,9.20710092]
[1730835877481,10.56428092,167.15,167.09,9.20710092]
[1730835877885,22.09433673,167.15,167.09,9.20710092]
[1730835878185,10.56428092,167.15,167.09,9.20710092]
[1730835878385,2.9919,167.11,167.09,9.20710092]
[1730835880085,9.20710092,167.1,167.02,1.355]
[1730835880287,9.20710092,167.06,167.01,9.20710092]
[1730835880788,2.9933,167.03,167.01,9.20710092]
[1730835885094,2.9931,167.04,167.01,9.20710092]
[1730835885593,2.8,167.08,167.02,9.20710092]
[1730835885594,12.00710092,167.08,167.02,9.20710092]
[1730835885794,2.9929,167.06,167.02,9.20710092]
[1730835886198,2.9927,167.07,167.02,12.20040092]
[1730835886394,9.20710092,167.08,167.02,12.20040092]
[1730835886794,2.9929,167.05,167.02,9.20710092]
[1730835887297,2.9931,167.05,167.01,9.20710092]
[1730835887505,9.20710092,167.06,167.01,9.20710092]
[1730835889305,9.20710092,167.06,167.01,12.20070092]
[1730835889306,2.993,167.05,167.01,12.20070092]
[1730835890998,2.993,167.05,167.01,2.9936]
[1730835891199,2.993,167.05,167.01,12.20070092]
[1730835892799,9.20710092,167.06,167.01,12.20070092]
[1730835893001,9.20710092,167.06,167.01,9.20710092]
[1730835893207,9.20710092,167.06,166.99,13.27110092]
[1730835894104,2.9931,167.04,166.99,16.26500092]
[1730835894609,9.20710092,167.06,167.01,9.20710092]
[1730835894808,2.9931,167.05,167.01,9.20710092]
[1730835895400,2.9931,167.05,167.01,12.20070092]
[1730835897707,1.3581,167.11,167.04,9.20710092]
[1730835897913,9.20710092,167.1,167.04,9.20710092]
[1730835898203,11.558347,167.1,167.04,9.20710092]
[1730835898402,9.20710092,167.09,167.04,9.20710092]
[1730835899006,9.20710092,167.07,167.02,12.20060092]
[1730835900313,2.9928,167.06,167.02,12.20060092]
[1730835901312,4.1581,167.11,167.02,9.20710092]
[1730835901510,9.20710092,167.08,167.02,9.20710092]
[1730835901712,9.20710092,167.08,166.99,4.064]
[1730835901910,2.9937,167.01,166.99,1.264]
[1730835902110,9.20710092,167.03,166.99,1.264]
[1730835902607,9.20710092,167.03,166.98,9.20710092]
[1730835903112,9.20710092,167.03,166.97,2.8]
[1730835903612,9.20710092,167.02,166.97,2.8]
[1730835904314,2.9938,167.0,166.97,2.8]
[1730835905413,2.9938,167.0,166.97,12.00710092]
[1730835905813,2.9941,166.99,166.97,12.00710092]
[1730835906312,9.20710092,167.0,166.95,9.20710092]
[1730835906816,1.3178,167.12,166.99,9.20710092]
[1730835907003,1.3507,167.11,167.0,4.155]
[1730835907208,10.79280152,167.14,167.08,9.20710092]
[1730835908616,10.79280152,167.14,167.09,9.20710092]
[1730835909320,10.79280152,167.14,167.11,9.20710092]
[1730835910118,1.34729,167.15,167.11,9.20710092]
[1730835910321,10.15784139,167.16,167.11,9.20710092]
[1730835910322,2.9915,167.14,167.11,9.20710092]
[1730835911724,9.20710092,167.17,167.11,9.20710092]
[1730835911915,5.4195,167.18,167.09,13.26960092]
[1730835911916,2.9915,167.13,167.09,13.26960092]
[1730835912117,9.20710092,167.14,167.09,1.2625]
[1730835913411,2.9918,167.12,167.09,1.2625]
[1730835914014,9.20710092,167.14,167.09,1.2625]
[1730835914323,2.9919,167.11,167.09,1.2625]
[1730835914924,9.20710092,167.14,167.08,12.00710092]
[1730835914925,2.992,167.1,167.08,12.00710092]
[1730835915623,2.992,167.1,167.08,9.20710092]
[1730835917022,2.9919,167.11,167.08,9.20710092]
[1730835917327,9.20710092,167.14,167.08,9.20710092]
[1730835917720,2.9919,167.11,167.08,9.20710092]
[1730835918427,2.992,167.1,167.08,9.20710092]
[1730835920328,9.20710092,167.14,167.08,9.20710092]
[1730835920526,2.9919,167.11,167.08,9.20710092]
[1730835926930,2.9923,167.09,167.06,12.00710092]
[1730835927323,9.20710092,167.12,167.06,12.00710092]
[1730835928622,9.20710092,167.09,167.02,1.2835]
[1730835928828,9.20710092,167.09,167.04,2.8]
[1730835929030,9.20710092,167.09,167.03,9.20710092]
[1730835929229,9.20710092,167.09,167.03,12.00710092]
[1730835929529,2.9924,167.08,167.03,15.00020092]
[1730835929925,9.20710092,167.09,167.03,15.00020092]
[1730835930130,2.9926,167.07,167.03,15.00020092]
[1730835930725,9.20710092,167.09,167.03,15.00020092]
[1730835930926,2.9924,167.08,167.03,15.00020092]
[1730835932626,9.20710092,167.06,167.02,1.2835]
[1730835932834,9.20710092,167.06,167.01,4.1745]
[1730835933137,2.9933,167.03,166.99,15.00110092]
[1730835933334,9.20710092,167.03,166.99,2.8]
[1730835933636,2.9938,167.0,166.96,17.63770092]
[1730835933836,9.20710092,167.0,166.96,2.6361]
[1730835935329,2.9941,166.99,166.96,2.6361]
[1730835936935,2.9941,166.99,166.96,1.29]
[1730835937130,2.9943,166.97,166.94,12.00710092]
[1730835938436,9.20710092,166.98,166.94,2.8]
[1730835938632,2.9946,166.96,166.94,2.8]
[1730835939023,2.8,167.02,166.9,2.7493]
[1730835939024,9.20710092,166.95,166.9,2.7493]
[1730835939333,2.995,166.94,166.9,11.95640092]
[1730835940139,2.995,166.94,166.9,14.95200092]
[1730835940528,2.9951,166.93,166.9,2.7493]
[1730835941232,2.995,166.94,166.9,1.3879]
[1730835941430,9.20710092,166.94,166.9,1.3879]
[1730835941833,2.9953,166.92,166.88,12.20300092]
[1730835942137,9.20710092,166.94,166.87,9.20710092]
[1730835942324,2.9954,166.92,166.87,12.20320092]
[1730835942832,2.9954,166.92,166.87,9.20710092]
[1730835943036,2.9956,166.91,166.87,9.20710092]
[1730835944631,2.9953,166.92,166.89,9.20710092]
[1730835947636,12.00710092,166.94,166.89,9.20710092]
[1730835947637,2.9951,166.93,166.89,9.20710092]
[1730835947835,2.8,166.94,166.9,9.20710092]
[1730835948132,2.9947,166.96,166.92,9.20710092]
[1730835948933,2.9947,166.95,166.92,9.20710092]
[1730835950842,2.9947,166.95,166.91,2.9953]
[1730835951834,2.8,166.99,166.92,12.20220092]
[1730835952038,9.20710092,166.98,166.92,12.20220092]
[1730835952344,9.20710092,166.96,166.92,12.20220092]
[1730835952543,12.20180092,166.96,166.92,9.20710092]
[1730835953443,9.20710092,166.95,104.04,13.1540153]
[1730835953749,9.20710092,166.93,166.89,9.20710092]
[1730835954038,2.8,166.96,166.91,9.20710092]
[1730835954340,2.9948,166.95,166.91,9.20710092]
[1730835954533,2.6552,167.01,166.91,9.20710092]
[1730835954842,9.20710092,166.98,166.93,2.995]
[1730835956339,2.9944,166.97,166.93,2.995]
[1730835956747,9.20710092,166.99,166.94,12.20200092]
[1730835957247,9.20710092,166.99,166.94,9.20710092]
[1730835957450,9.20710092,166.98,166.92,9.20710092]
[1730835958245,2.9944,166.97,166.92,12.20220092]
[1730835958752,2.9944,166.97,166.92,9.20710092]
[1730835959651,2.9946,166.96,166.92,9.20710092]
[1730835960246,2.9946,166.96,166.92,12.20230092]
[1730835960546,12.20150092,166.97,166.92,12.20230092]
[1730835961440,9.20710092,166.99,166.93,9.20710092]
[1730835961749,2.9942,166.98,166.93,9.20710092]
[1730835962056,9.20710092,166.99,166.93,12.20210092]
[1730835962557,2.9944,166.97,166.93,12.20210092]
[1730835962747,9.20710092,166.99,166.93,9.20710092]
[1730835962945,9.20710092,167.01,166.95,9.20710092]
[1730835963142,2.9941,166.99,166.95,9.20710092]
[1730835963847,2.9941,166.99,166.95,12.20170092]
[1730835964766,2.9941,166.99,166.95,9.20710092]
[1730835964965,9.20710092,166.99,166.94,9.20710092]
[1730835965163,9.20710092,166.96,166.91,12.00710092]
[1730835965864,9.20710092,166.98,166.92,9.20710092]
[1730835966065,12.20140092,166.98,166.93,2.995]
[1730835966269,9.20710092,166.98,166.93,2.995]
[1730835966968,2.9945,166.97,166.93,2.995]
[1730835967863,9.20710092,166.98,166.92,9.20710092]
[1730835968071,2.9945,166.96,166.92,12.20230092]
[1730835968268,9.20710092,166.97,166.91,12.00710092]
[1730835968961,9.20710092,166.97,166.91,9.20710092]
[1730835969466,2.9948,166.95,166.91,12.20250092]
[1730835970867,2.9948,166.95,166.91,2.9954]
[1730835972462,9.20710092,166.96,166.89,1.3514]
[1730835972772,2.9953,166.92,166.89,1.3514]
[1730835973476,2.9953,166.92,166.89,4.3472]
[1730835973666,9.20710092,166.93,166.89,4.3472]
[1730835973973,12.20220092,166.93,166.89,4.3472]
[1730835974671,2.9953,166.92,166.89,4.3472]
[1730835974970,9.20710092,166.93,166.89,1.3514]
[1730835975171,9.20710092,166.91,166.89,1.3514]
[1730835975376,2.9956,166.9,166.89,1.3514]
[1730835975877,2.9959,166.89,166.86,9.20710092]
[1730835977477,2.9959,166.89,166.85,2.9964]
[1730835977775,2.9961,166.88,166.84,4.3462]
[1730835977968,9.20710092,166.89,166.84,1.3496]
[1730835978370,2.9963,166.87,166.84,1.3496]
[1730835979480,2.9963,166.87,166.84,10.55670092]
[1730835980083,2.9963,166.87,166.84,13.55340092]
[1730835983777,2.9957,166.9,166.86,2.9962]
[1730835984375,2.9958,166.89,166.86,2.9962]
[1730835985678,9.20710092,166.91,166.88,2.9959]
[1730835985679,12.20260092,166.91,166.88,2.9959]
[1730835985874,9.20710092,166.92,166.85,9.20710092]
[1730835987081,2.9956,166.9,166.86,2.9963]
[1730835991284,9.20710092,166.92,166.85,9.20710092]
[1730835991285,2.9954,166.91,166.87,2.996]
[1730835991685,2.47216,166.96,166.87,9.20710092]
[1730835991887,9.20710092,166.94,166.87,9.20710092]
[1730835993387,2.9954,166.92,166.87,12.20310092]
[1730835993986,2.9954,166.92,166.88,2.9959]
[1730835995788,9.20710092,166.94,166.87,9.20710092]
[1730835995990,9.20710092,166.9,166.86,2.8]
[1730835996890,2.9959,166.89,166.86,5.7963]
[1730836001400,1.16896,166.96,166.86,2.8]
[1730836001702,9.20710092,166.91,166.86,2.8]
[1730836002296,2.9956,166.9,166.87,2.996]
[1730836002495,9.20710092,166.92,166.87,9.20710092]
[1730836003405,2.9956,166.91,166.87,12.20310092]
[1730836004204,12.20230092,166.93,166.89,2.9957]
[1730836004403,9.20710092,166.93,166.87,9.20710092]
[1730836004897,2.9953,166.92,166.88,2.9958]
[1730836005199,9.20710092,166.93,166.88,9.20710092]
[1730836005398,12.20220092,166.93,166.89,2.9957]
[1730836005798,9.20710092,166.93,166.89,2.9957]
[1730836006199,9.20710092,166.93,166.9,2.9955]
[1730836007403,9.20710092,166.93,166.89,2.9957]
[1730836009004,12.20220092,166.93,166.89,2.9957]
[1730836011708,9.20710092,166.93,166.9,2.9956]
[1730836013395,12.20220092,166.93,166.89,2.9957]
[1730836018110,9.20710092,166.93,166.89,2.9957]
[1730836018311,10.37606092,166.96,166.91,9.20710092]
[1730836018908,13.37066092,166.96,166.92,2.9952]
[1730836019213,1.16896,166.96,166.93,9.20710092]
[1730836019912,1.16896,166.96,166.94,2.9948]
[1730836022214,1.16896,166.96,166.92,15.00220092]
[1730836022710,1.16896,166.96,166.93,2.995]
[1730836022919,4.16356,166.96,166.93,2.995]
[1730836023508,1.16896,166.96,166.93,2.995]
[1730836024715,2.9946,166.96,166.93,2.995]
[1730836026317,9.20710092,166.98,166.93,2.995]
[1730836026713,2.8,167.01,166.92,12.00710092]
[1730836027013,9.20710092,166.99,166.94,2.9947]
[1730836027719,2.8,167.01,166.95,2.9946]
[1730836027918,9.20710092,167.0,166.95,2.9946]
[1730836028413,1.2995,167.02,166.97,2.9942]
[1730836028617,1.2995,167.02,166.98,9.20710092]
[1730836029209,2.9933,167.03,166.99,2.994]
[1730836029415,5.45232,167.05,166.99,2.994]
[1730836029416,1.26302,167.05,166.99,2.994]
[1730836029718,9.20710092,167.04,166.99,12.20110092]
[1730836031219,12.20020092,167.04,166.99,12.20110092]
[1730836031614,1.26302,167.05,167.01,12.20060092]
[1730836031811,1.26302,167.05,167.01,9.20710092]
[1730836033320,2.9931,167.04,167.01,9.20710092]
[1730836034521,2.9931,167.04,167.0,2.9938]
[1730836035935,9.20710092,167.02,166.96,2.8]
[1730836036236,9.20710092,167.02,166.97,9.20710092]
[1730836036433,9.20710092,167.01,166.96,9.20710092]
[1730836036736,9.20710092,167.01,166.95,12.00710092]
[1730836036937,9.20710092,166.99,166.94,1.3651]
[1730836037137,9.20710092,166.97,166.94,4.3598]
[1730836037836,2.9943,166.98,166.95,2.9947]
[1730836038731,9.20710092,167.01,166.95,2.9947]
[1730836038930,2.9939,167.0,166.97,2.9943]
[1730836039132,4.0622,167.04,166.97,9.20710092]
[1730836039133,9.20710092,167.03,166.97,9.20710092]
[1730836039824,2.9937,167.01,166.97,12.20130092]
[1730836041525,9.20710092,167.02,166.97,9.20710092]
[1730836041730,2.9938,167.0,166.96,15.00160092]
[1730836043435,2.9938,167.0,166.97,2.9943]
[1730836044036,9.20710092,167.01,166.96,15.00150092]
[1730836044236,2.9942,166.98,166.96,12.00710092]
[1730836044633,9.20710092,167.01,166.96,12.00710092]
[1730836044829,2.9943,166.97,166.96,2.8]
[1730836045028,2.9943,166.97,166.94,1.3651]
[1730836045840,2.9943,166.97,166.94,4.3599]
[1730836046140,2.9943,166.97,166.94,13.56700092]
[1730836046339,2.9941,166.99,166.96,9.20710092]
[1730836046536,9.20710092,167.02,166.96,9.20710092]
[1730836046943,9.20710092,167.02,166.96,12.20160092]
[1730836047539,2.9939,167.0,166.97,9.20710092]
[1730836048236,2.9937,167.01,166.98,2.9942]
[1730836049344,13.27012092,167.05,166.99,9.20710092]
[1730836049747,9.20710092,167.04,166.99,9.20710092]
[1730836050445,2.9934,167.03,166.99,12.20100092]
[1730836050641,1.26302,167.05,166.97,2.8]
[1730836050642,1.26302,167.05,167.02,9.20710092]
[1730836050844,9.20710092,167.07,167.02,9.20710092]
[1730836051042,43.14,167.18,167.03,9.20710092]
[1730836051341,43.14,167.18,167.01,2.8]
[1730836051342,9.20710092,167.1,167.05,9.20710092]
[1730836051543,9.20710092,167.11,167.05,9.20710092]
[1730836052143,2.8,167.13,167.05,9.20710092]
[1730836052438,2.6404,167.16,167.05,9.20710092]
[1730836052439,2.9923,167.09,167.05,9.13098036]
[1730836052639,9.20710092,167.11,167.05,9.13098036]
[1730836052946,9.20710092,167.1,167.04,12.20010092]
[1730836053138,2.9924,167.08,167.04,12.20010092]
[1730836054139,9.20710092,167.1,167.04,9.20710092]
[1730836054334,2.8,167.13,167.04,9.20710092]
[1730836054335,2.9927,167.06,167.04,9.20710092]
[1730836056244,2.9927,167.06,167.02,14.91170092]
[1730836056442,9.20710092,167.08,167.02,11.91840092]
[1730836056642,2.993,167.05,167.02,11.91840092]
[1730836057647,2.8,167.13,167.04,9.20710092]
[1730836057842,9.20710092,167.1,167.04,9.20710092]
[1730836058043,9.20710092,167.08,167.04,9.20710092]
[1730836058440,2.8,167.13,167.02,11.91840092]
[1730836058441,9.20710092,167.07,167.02,11.91840092]
[1730836060345,2.9929,167.05,167.02,11.91840092]
[1730836061252,2.8,167.13,167.02,11.91840092]
[1730836061548,2.8,167.13,167.05,9.20710092]
[1730836061549,9.20710092,167.1,167.05,9.20710092]
[1730836063344,2.9924,167.08,167.05,9.20710092]
[1730836063948,1.34215,167.14,167.05,9.20710092]
[1730836064142,9.20710092,167.12,167.06,9.20710092]
[1730836065050,9.20710092,167.11,167.05,9.20710092]
[1730836065852,2.9926,167.08,167.05,9.20710092]
[1730836067353,9.20710092,167.11,167.05,9.20710092]
[1730836067354,2.9926,167.07,167.05,9.20710092]
[1730836068056,2.9926,167.07,167.03,12.20030092]
[1730836068255,2.9925,167.08,167.04,2.9931]
[1730836069258,2.9926,167.07,167.03,12.20030092]
[1730836070155,9.20710092,167.09,167.03,12.20030092]
[1730836071156,2.9927,167.07,167.03,12.20030092]
[1730836071660,2.9927,167.07,167.03,9.20710092]
[1730836072858,9.20710092,167.05,167.02,2.7113]
[1730836073058,2.9933,167.03,167.02,1.3514]
[1730836073251,1.34215,167.14,167.02,1.3514]
[1730836073252,9.20710092,167.06,167.02,1.3514]
[1730836073457,2.8,167.08,167.02,10.55850092]
[1730836073656,2.9929,167.06,167.02,10.55850092]
[1730836073858,12.00710092,167.08,167.02,10.55850092]
[1730836074060,2.993,167.05,167.02,1.3514]
[1730836077059,2.9933,167.03,167.02,1.3514]
[1730836077259,2.8,167.08,166.99,9.20710092]
[1730836077260,9.20710092,167.05,166.99,9.20710092]
[1730836077763,2.9934,167.03,166.99,12.20100092]
[1730836078359,2.9934,167.03,167.01,9.20710092]
[1730836081754,2.9934,167.03,167.0,9.20710092]
[1730836082469,9.20710092,167.06,167.0,9.20710092]
[1730836083268,2.9934,167.03,167.0,9.20710092]
[1730836083768,2.993,167.05,167.01,12.20060092]
[1730836084267,9.20710092,167.07,167.01,9.20710092]
[1730836084472,2.9932,167.04,167.01,9.20710092]
[1730836089579,11.5143629,167.13,167.03,9.20710092]
[1730836089874,12.00710092,167.12,167.06,9.20710092]
[1730836090379,2.8,167.13,167.07,9.20710092]
[1730836090573,12.00710092,167.13,167.07,9.20710092]
[1730836091077,2.992,167.11,167.07,9.20710092]
[1730836092582,1.34215,167.14,167.09,9.20710092]
[1730836093777,2.9919,167.11,167.09,9.20710092]
[1730836094280,9.20710092,167.13,167.09,9.20710092]
[1730836095078,2.9917,167.12,167.09,9.20710092]
[1730836096179,1.34215,167.14,167.11,9.20710092]
[1730836097783,2.9908,167.17,167.13,9.20710092]
[1730836097977,2.9908,167.17,167.14,9.20710092]
[1730836098283,2.9902,167.21,167.16,9.20710092]
[1730836098480,33.62176005,167.22,167.16,9.20710092]
[1730836098778,2.9904,167.19,167.16,9.20710092]
[1730836098984,9.20710092,167.22,167.16,9.20710092]
[1730836099177,9.20710092,167.19,167.14,12.00710092]
[1730836099484,9.20710092,167.17,167.12,2.8]
[1730836099686,9.20710092,167.17,167.12,12.00710092]
[1730836099871,12.19830092,167.17,167.12,12.00710092]
[1730836100175,9.20710092,167.14,167.08,2.8]
[1730836100371,9.20710092,167.13,167.07,9.20710092]
[1730836100577,9.20710092,167.11,167.07,2.8]
[1730836100781,9.20710092,167.11,167.06,10.58060092]
[1730836100983,2.9924,167.1,167.06,10.58060092]
[1730836101575,2.9927,167.08,167.06,10.58060092]